{"text_format":"1","workbook":"xlsx","n_sheets":1,"sheets":["1,2,3,4,5,6"],"not_rendered":{"charts":0,"images":0,"macros":0,"external_links":0,"defined_names":4,"comments":0,"pivot_tables":0},"unopened":[],"bounds":{"document_bytes":16777216,"sheet_cells":100000,"rows_first":2000,"rows_last":500,"rows_between":2000,"halvings":0,"cell_chars":16384,"cell_head_chars":4096},"cells_cut":0,"cells_raw":0,"read":"whole","date_system":"1900"}

{"sheet":"1,2,3,4,5,6","index":0,"n_rows":110,"n_cols":15,"rows_kept":110,"cut":false,"hidden":false,"merged":[[71,2,71,3],[71,5,71,6],[71,7,71,8],[71,9,71,10],[71,11,71,12],[50,7,50,8],[51,0,51,12],[50,2,50,3],[52,2,52,3],[54,2,54,3],[60,7,60,8],[60,9,60,10],[60,11,60,12],[61,5,61,6],[61,7,61,8],[61,9,61,10],[50,9,50,10],[50,11,50,12],[52,5,52,6],[50,5,50,6],[59,5,59,6],[59,7,59,8],[59,9,59,10],[59,11,59,12],[55,11,55,12],[56,5,56,6],[49,2,49,3],[37,0,37,3],[39,0,39,3],[22,0,22,11],[23,0,24,0],[23,1,24,1],[23,2,24,2],[23,3,24,3],[23,4,23,6],[23,7,23,9],[32,0,32,11],[33,4,33,6],[33,7,33,9],[49,5,49,6],[49,7,49,8],[49,9,49,10],[49,11,49,12],[33,10,33,12],[43,0,43,3],[44,0,45,0],[44,4,45,4],[44,2,45,3],[44,1,45,1],[46,2,46,3],[64,2,64,12],[61,11,61,12],[55,2,55,3],[56,2,56,3],[58,2,58,3],[59,2,59,3],[60,2,60,3],[61,2,61,3],[60,5,60,6],[58,9,58,10],[58,11,58,12],[57,0,57,12],[56,7,56,8],[56,9,56,10],[56,11,56,12],[58,5,58,6],[58,7,58,8],[52,7,52,8],[52,9,52,10],[54,9,54,10],[54,11,54,12],[62,0,62,12],[63,2,63,12],[53,0,53,12],[77,11,77,12],[65,7,65,8],[65,9,65,10],[65,11,65,12],[70,2,70,3],[70,5,70,6],[70,7,70,8],[70,9,70,10],[65,2,65,3],[65,5,65,6],[70,11,70,12],[68,2,68,12],[66,2,66,3],[66,5,66,6],[66,7,66,8],[66,9,66,10],[55,5,55,6],[55,7,55,8],[55,9,55,10],[73,2,73,12],[72,5,72,6],[72,7,72,8],[72,11,72,12],[72,2,72,3],[75,9,75,10],[72,9,72,10],[78,11,78,12],[77,9,77,10],[66,11,66,12],[67,2,67,3],[67,5,67,6],[67,7,67,8],[67,9,67,10],[67,11,67,12],[15,9,15,12],[16,10,16,11],[20,10,20,11],[18,10,18,11],[19,10,19,11],[44,5,45,6],[46,5,46,6],[47,2,47,12],[44,11,45,12],[46,9,46,10],[46,11,46,12],[44,9,45,10],[44,7,45,8],[46,7,46,8],[48,2,48,12],[52,11,52,12],[54,5,54,6],[54,7,54,8],[17,0,17,1],[13,1,13,8],[16,0,16,1],[16,2,16,3],[15,0,15,4],[20,0,20,1],[20,2,20,3],[18,0,18,1],[18,2,18,3],[18,5,18,6],[19,0,19,1],[19,2,19,3],[19,5,19,6],[0,10,0,12],[2,10,2,12],[6,0,6,9],[38,0,38,3],[10,3,10,13],[11,2,11,3],[12,2,12,3],[11,4,11,13],[12,4,12,13],[14,3,14,10],[7,3,7,13],[8,3,8,13],[33,0,34,3],[36,0,36,3],[35,0,35,3],[17,2,17,3],[17,5,17,6],[17,10,17,11],[23,10,23,12],[30,0,30,12],[21,1,21,9],[15,5,15,8],[16,5,16,6],[20,5,20,6],[78,2,78,3],[77,5,77,6],[99,0,99,15],[88,0,89,0],[88,1,89,1],[88,2,89,2],[88,3,88,5],[84,0,84,6],[85,0,86,15],[83,2,83,12],[88,6,88,8],[88,9,88,11],[88,12,88,14],[78,5,78,6],[77,7,77,8],[78,7,78,8],[105,7,105,8],[105,10,105,13],[81,2,81,3],[81,5,81,6],[81,7,81,8],[81,9,81,10],[81,11,81,12],[69,2,69,3],[69,5,69,6],[69,7,69,8],[69,9,69,10],[69,11,69,12],[75,11,75,12],[74,2,74,3],[75,2,75,3],[74,5,74,6],[74,7,74,8],[75,5,75,6],[75,7,75,8],[74,9,74,10],[74,11,74,12],[78,9,78,10],[76,2,76,12],[77,2,77,3],[109,0,109,6],[109,7,109,8],[109,10,109,13],[106,7,106,8],[106,10,106,13],[108,0,108,6],[108,7,108,8],[108,10,108,13],[79,5,79,6],[82,7,82,8],[82,11,82,12],[82,9,82,10],[80,2,80,12],[79,7,79,8],[79,9,79,10],[79,11,79,12],[79,2,79,3],[82,2,82,3],[82,5,82,6],[100,0,100,15],[101,0,101,15],[95,1,95,14],[104,0,104,6],[105,0,105,6]]}
[null,null,null,null,null,null,null,null,null,null,"ЗАТВЕРДЖЕНО"]
[null,null,null,null,null,null,null,null,null,null,"Наказ Міністерства фінансів України"]
[null,null,null,null,null,null,null,null,null,null,"26.08.2014 N 836 "]
[]
[]
[null,null,null,null,null,null,null," ЗВІТ"]
["про виконання паспорта бюджетної програми місцевого бюджету  станом на",null,null,null,null,null,null,null,null,null,"01","січня","2019 року"]
["1.","0200000",null,"Виконавчий комітет Житомирської міської ради Житомирської області"]
[null,"(КПКВК МБ) ",null,"      (найменування головного розпорядника) "]
["2.","0210000",null,"Виконавчий комітет Житомирської міської ради Житомирської області"]
[null,"(КПКВК МБ) ",null,"      (найменування відповідального виконавця) "]
["3.","0216080",null,null,"Реалізація державних та місцевих житлових програм"]
[null,"(КПКВК МБ) ","(КФКВК) ",null,"      (найменування бюджетної програми) "]
["4.","Видатки та надання кредитів  за бюджетною програмою за  звітний період"]
[null,null,null,null,null,null,null,null,null,null,null,"(тис. грн.)"]
["Затверджено паспортом бюджетної програми ",null,null,null,null,"Касові видатки (надані кредити)",null,null,null,"Відхилення "]
["загальний фонд ",null,"спеціальний фонд ",null,"разом ","загальний фонд ",null,"спеціальний фонд ","разом ","загальний фонд ","спеціальний фонд ",null,"разом "]
[1,null,2,null,3,4,null,5,6,7,8,null,9]
[104.7,null,19.5,null,{"$f":"SUM(A19:D19)","v":124.2},104.7,null,19.5,{"$f":"SUM(F19:H19)","v":124.2},{"$f":"A19-F19","v":0},{"$f":"H19-C19","v":0},null,{"$f":"SUM(J19:L19)","v":0}]
[2.4,null,2159.9,null,{"$f":"SUM(A20:D20)","v":2162.3000000000002},2.4,null,2139.1,{"$f":"SUM(F20:H20)","v":2141.5},{"$f":"A20-F20","v":0},{"$f":"H20-C20","v":-20.800000000000182},null,{"$f":"SUM(J20:L20)","v":-20.800000000000182}]
[{"$f":"SUM(A19:B20)","v":107.10000000000001},null,{"$f":"SUM(C19:D20)","v":2179.4},null,{"$f":"SUM(E19:E20)","v":2286.5},{"$f":"SUM(F19:G20)","v":107.10000000000001},null,{"$f":"SUM(H19:H20)","v":2158.6},{"$f":"SUM(F21:H21)","v":2265.6999999999998},{"$f":"A21-F21","v":0},{"$f":"H21-C21","v":-20.800000000000182},null,{"$f":"SUM(J21:L21)","v":-20.800000000000182}]
["5. ","Обсяги фінансування бюджетної програми за звітний період у розрізі підпрограм  та завдань"]
[null,null,null,null,null,null,null,null,null,null,null,null,"(тис. грн.)"]
["N з/п ","КПКВК","КФКВК","Підпрограма/зав-дання бюджетної програми","Затверджено паспортом бюджетної програми на звітний період ",null,null,"Касові видатки (надані кредити) за звітний період ",null,null,"Відхилення "]
[null,null,null,null,"загальний фонд ","спеціальний фонд ","разом ","загальний фонд ","спеціальний фонд ","разом ","загальний фонд ","спеціальний фонд ","разом "]
[1,216084,1060,"Підпрограма 1 . Витрати, пов'язані з наданням та обслуговуванням пільгових довгострокових кредитів, наданих громадянам на будівництво /реконструкцію/ придбання житла",104.7,19.5,{"$f":"SUM(E26:F26)","v":124.2},104.7,19.5,{"$f":"SUM(H26:I26)","v":124.2},{"$f":"E26-H26","v":0},{"$f":"SUM(I26-F26)","v":0},{"$f":"K26+L26","v":0}]
[null,216084,1060,"Завдання 1 .  Витрати, пов'язані з наданням та обслуговуванням пільгових довгострокових кредитів, наданих громадянам на будівництво /реконструкцію/ придбання житла",104.7,19.5,{"$f":"SUM(E27:F27)","v":124.2},104.7,19.5,{"$f":"SUM(H27:I27)","v":124.2},{"$f":"E27-H27","v":0},{"$f":"SUM(I27-F27)","v":0},{"$f":"K27+L27","v":0}]
[2,216083,1060,"Підпрограма 2. Проектні, будівельно-ремонтні роботи, придбання житла та приміщень для розвитку сімейних та інших форм виховання, наближених до сімейних, та забезпечення житлом дітей-сиріт, осіб з їх числа",2.4,2159.9,{"$f":"SUM(E28:F28)","v":2162.3000000000002},2.4,2139.1,{"$f":"SUM(H28:I28)","v":2141.5},0,{"$f":"SUM(I28-F28)","v":-20.800000000000182},{"$f":"K28+L28","v":-20.800000000000182}]
[null,"0216083",1060,"Завдання1. Забезпечити житлом, соціальним житлом дітей-сиріт та осіб з їх числа",2.4,2159.9,{"$f":"SUM(E29:F29)","v":2162.3000000000002},2.4,2139.1,{"$f":"SUM(H29:I29)","v":2141.5},{"$f":"E29-H29","v":0},{"$f":"SUM(I29-F29)","v":-20.800000000000182},{"$f":"K29+L29","v":-20.800000000000182}]
[null,null,null,"Усього",{"$f":"SUM(E26+E28)","v":107.10000000000001},2179.4,2286.5,107.10000000000001,2158.6,2265.6999999999998,{"$f":"SUM(K27:K29)","v":0},{"$f":"SUM(L26+L28)","v":-20.800000000000182},{"$f":"SUM(K30:L30)","v":-20.800000000000182}]
[]
["6. ","Видатки на реалізацію регіональних цільових програм, які виконуються в межах бюджетної програми, за звітний період"]
[null,null,null,null,null,null,null,null,null,null,null,null,"(тис. грн.)"]
["Назва  регіональної цільової програми  та підпрограми",null,null,null,"Затверджено паспортом бюджетної програми на звітний період ",null,null,"Касові видатки ( надані кредити) за звітний період",null,null,"Відхилення "]
[null,null,null,null,"загальний фонд ","спеціальний фонд ","разом ","загальний фонд ","спеціальний фонд ","разом ","загальний фонд ","спеціальний фонд ","разом "]
[1,null,null,null,2,3,4,5,6,7,8,9,10]
["Регіональна цільова програма 1 "]
["Міська програма забезпечення молодих сімей та одиноких громадян житлом в м.Житомирі на 2018-2022 роки",null,null,null,104.7,19.5,{"$f":"SUM(E38:F38)","v":124.2},104.7,19.5,{"$f":"SUM(H38:I38)","v":124.2},{"$f":"E38-H38","v":0},{"$f":"I38-F38","v":0},{"$f":"K38+L38","v":0}]
["Комплексна міська Програма соціального захисту населення на 2016-2020 роки",null,null,null,2.4,2159.9,{"$f":"SUM(E39:F39)","v":2162.3000000000002},2.4,2139.1,{"$f":"SUM(H39:I39)","v":2141.5},0,{"$f":"I39-F39","v":-20.800000000000182},{"$f":"K39+L39","v":-20.800000000000182}]
["Усього",null,null,null,{"$f":"SUM(E38:E39)","v":107.10000000000001},{"$f":"SUM(F38:F39)","v":2179.4},2286.5,107.10000000000001,2158.6,2265.6999999999998,0,-20.800000000000182,-20.800000000000182]
[]
["7. Результативні показники бюджетної програми, та аналіз їх виконання за звітний період"]
[]
[]
["N з/п ","КПКВК","Показники ",null,"Одиниця виміру ","Джерело інформації ",null,"Затверджено паспортом бюджетної програми на звітний період",null,"Виконано за звітний період ( касові видатки/надані кредити)",null,"Відхилення"]
[]
[1,2,3,null,4,5,null,6,null,7,null,8]
[null,null,"Підпрограма 1. Витрати, пов'язані з наданням та обслуговуванням пільгових довгострокових кредитів, наданих громадянам на будівництво /реконструкцію/ придбання житла"]
[null,"0216084","Завдання 1. Витрати, пов'язані з наданням та обслуговуванням пільгових довгострокових кредитів, наданих громадянам на будівництво /реконструкцію/ придбання житла"]
[null,null,"затрат"]
[null,null,"кількість сімей, які перебувають на обліку",null,"од.","реєстр",null,128,null,131,null,{"$f":"J51-H51","v":3}]
["Збільшилась кількість звернень громадян"]
[null,"0216084","обсяг витрат, пов'язані з наданням та обслуговуванням пільгових довгострокових кредитів, наданих громадянам на будівництво (реконструкцію) та придбання житла",null,"тис.грн.","рішення міської ради від 18.12.2017 №881 зі змінами",null,124.2,null,124.2,null,{"$f":"J53-H53","v":0}]
[]
[null,null,"продукту"]
[null,"0216084","кількість укладених договорів, за якими планується здійснювати обслуговування кредитів",null,"од.","розрахункові показники",null,4,null,4,null,{"$f":"J56-H56","v":0}]
[null,"0216084","площа, яку планується надати",null,"м.кв.","розрахункові показники",null,null,null,null,null,0]
[]
[null,null,"ефективності"]
[null,"0216084","середні витрати на обслуговування одного кредитного договору ",null,"тис.грн.","розрахункові показники",null,31.05,null,31.05,null,{"$f":"J60-H60","v":0}]
[null,null,"якості"]
[null,"0216084","динаміка зростання витрат на обслуговування одного кредитного договору порівняно з попереднім роком",null,"%","розрахунково",null,72.900000000000006,null,33.26,null,{"$f":"J62-H62","v":-39.640000000000008}]
["Фактичний результативний показник менший у порівнянні з затвердженим у зв'язку з тим, що кредити надані позичальникам були частково змішані з коштами обласного бюджету, а також слід врахувати , що двома позичальнтками внесено збільшені обсяги внесків"]
[null,null,"Підпрограма 2. Проектні, будівельно-ремонтні роботи, придбання житла та приміщень для розвитку сімейних та інших форм виховання, наближених до сімейних, та забезпечення житлом дітей-сиріт, осіб з їх числа"]
[null,null,"завдання 1.  Забезпечити житлом, соціальним житлом дітей-сиріт та осіб з їх числа"]
[1,null,"затрат"]
[null,"0216083","видатки на виконання програми за рахунок субвенції",null,"тис.грн.","рішення сесії від 18.12.2017№881 \"Про міський бюджет на 2018 рік\" зі змінами",null,1920.1,null,1911.12,null,{"$f":"J67-H67","v":-8.9800000000000182}]
[null,"0216083","видатки на виконання програми за рахунок місцевого бюджету",null,"тис.грн.","рішення сесії від 18.12.2017№881 \"Про міський бюджет на 2018 рік\" зі змінами",null,242.2,null,230.4,null,{"$f":"J68-H68","v":-11.799999999999983}]
[]
[null,"0216083","обсяг витрат, пов'язаних з наданням та обслуговуванням пільгових довгострокових кредитів, наданих громадянам на будівництво (реконструкцію) та придбання житла",null,"од.","рішення міської ради від 21.12.2016 №42 зі змінами",null,71.8,null,69.8,null,{"$f":"J70-H70","v":-2}]
[2,null,"продукту"]
[null,"0216083","кількість дітей-сиріт, осіб з їх числа, які перебувають на обліку громадян які потребують поліпшення житлових умов або на соціальному квартирному обліку",null,"од.","рішення виконавчого комітету",null,7,null,7,null,{"$f":"J72-H72","v":0}]
[null,"0216083","Житло, соціальне житло для дітей-сиріт, осіб із числа, які перебувають на обліку громадян, які потребують поліпшення житлових умов або на соціальному квартирному обліку",null,"од.","згідно розподілу субвенції",null,4,null,4,null,{"$f":"J73-H73","v":0}]
[]
[3,null,"ефективності"]
[null,"0216083","кількість дітей-сиріт, осіб з числа дітей-сиріт які будуть забезпечені житлом та соціальним житлом",null,"осіб","згідно кількості придбаних житлових об'єктів",null,4,null,4,null,{"$f":"J76-H76","v":0}]
[null,null,"Фактичний результативний показник менший у порівнянні з затвердженим у зв'язку з тим , що кошти із спецфонду  використані в межах надходжень"]
[null,null,"якості"]
[null,null,"показник"]
[null,null,"…"]
[null,null,"Пояснення щодо причин розбіжностей між затвердженими та досягнутими результативними показниками"]
[4,null,"якості"]
[null,"0216083","питома вага дітей-сиріт, осіб з числа дітей-сиріт, які будуть забезпечені житлом, соціальним житлом",null,"%","розрахунково",null,57.1,null,57.1,null,{"$f":"J83-H83","v":0}]
[]
[]
["8. Джерела фінансування інвестиційних проектів у розрізі підпрограм 3"]
[]
[null,null,null,null,null,null,null,null,null,null,null,null,null,null,"(тис. грн.)"]
["Код","Найменування джерел надходжень ","КПКВК","Касові видатки станом на 01 січня звітного періоду ",null,null,"План видатків звітного періоду ",null,null,"Касові видатки за звітний період ",null,null,"Прогноз видатків до кінця реалізації  інвестиційного проекту "]
[null,null,null,"загальний фонд ","спеціальний фонд ","разом ","загальний фонд ","спеціальний фонд ","разом ","загальний фонд ","спеціальний фонд ","разом ","загальний фонд ","спеціальний фонд ","разом "]
[1,2,"3.",4,5,6,7,8,9,10,11,12,13,14,15]
[null,"Підпрограма 1",null,"  ","  ","  ","  ","  ","  ","  ","  ","  ","  ","  ","  "]
[null,"Інвестиційний проект 1",null,"  ",null,"  ","  ",null,"  ","  ",null,"  ","  ","  ","  "]
[null,"Надходження із бюджету"]
[null,"Інші джерела фінансування (за видами) ",null,"Х ","  ",null,"Х ","  ","  ","Х ","  ","  ","Х ","  ","  "]
[null,"Пояснення щодо розбіжностей між фактичними надходженнями і тими, що затверджені паспортами бюджетної програми"]
[null,"Інвестиційний проект 2"]
[null,"Усього",null,null,null,null,null,null,null,null,null,null,null,null,"  "]
[]
["1 Код функціональної класифікації видатків та кредитування бюджету вказується лише у випадку, коли бюджетна програма не поділяється на підпрограми."]
["2 Зазначаються усі підпрограми та завдання, затверджені паспортом бюджетної програми."]
["3 Пункт 8 заповнюється тільки для затверджених у місцевому бюджеті видатків/ надання кредитів на реалізацію інвестиційних проектів ( програм)."]
[]
[]
["Керівник установи головного розпорядника"]
["бюджетних коштів ",null,null,null,null,null,null,null,null,null,"Пашко О.М."]
[null,null,null,null,null,null,null,"(підпис) ",null,null,"(прізвище та ініціали) "]
[]
["Головний бухгалтер установи головного розпорядника",null,null,null,null,null,null,null,null,null,"Борецька Н.В."]
["бюджетних коштів ",null,null,null,null,null,null,"(підпис) ",null,null,"(прізвище та ініціали) "]